fUSD/lending_fUSD_20260524
["ID","MTS","AMOUNT","RATE_DAILY","PERIOD"]
[422888014,1779576637000,-550.17875004,0.00020309,2]
[422888011,1779576637000,-500.0,0.00020309,2]
[422888008,1779576637000,-500.0,0.00020309,2]
[422888006,1779576637000,-550.17875004,0.00020309,2]
[422888010,1779576637000,-550.17875004,0.00020309,2]
[422888007,1779576637000,-550.17875004,0.00020309,2]
[422888004,1779576637000,-583.49437518,0.00020281,2]
[422888005,1779576637000,-25.07737125,0.00020309,2]
[422888013,1779576637000,-500.0,0.00020309,2]
[422888009,1779576637000,-500.0,0.00020309,2]
[422888012,1779576637000,-550.17875004,0.00020309,2]
[422888028,1779576637000,-486.56492906,0.00020309,2]
[422888020,1779576637000,-500.0,0.00020309,2]
[422888023,1779576637000,-550.17875004,0.00020309,2]
[422888031,1779576637000,-11892.33503518,0.0002031,2]
[422888026,1779576637000,-500.0,0.00020309,2]
[422888027,1779576637000,-500.0,0.00020309,2]
[422888029,1779576637000,-500.0,0.00020309,2]
[422888024,1779576637000,-500.0,0.00020309,2]
[422888030,1779576637000,-500.0,0.00020309,2]
[422888019,1779576637000,-550.17875004,0.00020309,2]
[422888022,1779576637000,-500.0,0.00020309,2]
[422888018,1779576637000,-550.17875004,0.00020309,2]
[422888017,1779576637000,-500.0,0.00020309,2]
[422888016,1779576637000,-550.17875004,0.00020309,2]
[422888025,1779576637000,-1050.17875004,0.00020309,2]
[422888063,1779576641000,-583.49437512,0.00021461,2]
[422888042,1779576641000,-447.0,0.00021,2]
[422888061,1779576641000,-5021.52450456,0.00021461,2]
[422888059,1779576641000,-506.59901864,0.00021416,7]
[422888043,1779576641000,-1449.0,0.00021,2]
[422888047,1779576641000,-224.0,0.00021,2]
[422888049,1779576641000,-397.0,0.00021,2]
[422888045,1779576641000,-157.0,0.00021,2]
[422888040,1779576641000,-167.65961344,0.0002058,2]
[422888038,1779576641000,-1337.2,0.00020381,2]
[422888055,1779576641000,-352.0,0.00021,2]
[422888053,1779576641000,-344.0,0.00021,2]
[422888051,1779576641000,-163.0,0.00021,2]
[422888041,1779576641000,-155.0,0.00021,2]
[422888039,1779576641000,-150.0,0.0002058,2]
[422888036,1779576641000,-766.31061155,0.0002031,2]
[422888037,1779576641000,-245914.94759637,0.0002031,2]
[422888035,1779576641000,-512.62532348,0.0002031,2]
[422888034,1779576641000,-998.58213342,0.0002031,2]
[422888066,1779576641000,-2000.0,0.00021586,2]
[422888057,1779576641000,-6469.39,0.0002137,2]
[422888069,1779576641000,-500.0,0.00021644,2]
[422888077,1779576641000,-500.0,0.00021644,2]
[422888071,1779576641000,-500.0,0.00021644,2]
[422888067,1779576641000,-500.0,0.00021644,2]
[422888101,1779576641000,-500.0,0.00021644,2]
[422888111,1779576641000,-466.29850222,0.00021918,2]
[422888100,1779576641000,-500.0,0.00021644,2]
[422888110,1779576641000,-500.0,0.00021918,2]
[422888098,1779576641000,-500.0,0.00021644,2]
[422888103,1779576641000,-628.0,0.00021644,2]
[422888114,1779576641000,-151.0,0.00021999,2]
[422888107,1779576641000,-171.56,0.00021918,2]
[422888095,1779576641000,-500.0,0.00021644,2]
[422888108,1779576641000,-500.0,0.00021918,2]
[422888094,1779576641000,-484.68457076,0.00021644,2]
[422888088,1779576641000,-500.0,0.00021644,2]
[422888086,1779576641000,-500.0,0.00021644,2]
[422888092,1779576641000,-500.0,0.00021644,2]
[422888084,1779576641000,-500.0,0.00021644,2]
[422888090,1779576641000,-500.0,0.00021644,2]
[422888073,1779576641000,-500.0,0.00021644,2]
[422888082,1779576641000,-500.0,0.00021644,2]
[422888075,1779576641000,-500.0,0.00021644,2]
[422888105,1779576641000,-500.0,0.000219,2]
[422888080,1779576641000,-500.0,0.00021644,2]
[422888187,1779576642000,-151.0,0.00021999,2]
[422888196,1779576642000,-500.0,0.00021999,2]
[422888195,1779576642000,-151.0,0.00021999,2]
[422888179,1779576642000,-151.0,0.00021999,2]
[422888176,1779576642000,-151.0,0.00021999,2]
[422888174,1779576642000,-500.0,0.00021999,2]
[422888181,1779576642000,-500.0,0.00021999,2]
[422888183,1779576642000,-151.0,0.00021999,2]
[422888182,1779576642000,-151.0,0.00021999,2]
[422888185,1779576642000,-151.0,0.00021999,2]
[422888184,1779576642000,-500.0,0.00021999,2]
[422888189,1779576642000,-500.0,0.00021999,2]
[422888201,1779576642000,-151.0,0.00021999,2]
[422888193,1779576642000,-500.0,0.00021999,2]
[422888192,1779576642000,-151.0,0.00021999,2]
[422888194,1779576642000,-151.0,0.00021999,2]
[422888197,1779576642000,-151.0,0.00021999,2]
[422888198,1779576642000,-151.0,0.00021999,2]
[422888199,1779576642000,-500.0,0.00021999,2]
[422888206,1779576642000,-1449.0,0.00022,2]
[422888207,1779576642000,-224.0,0.00022,2]
[422888205,1779576642000,-447.0,0.00022,2]
[422888172,1779576642000,-151.0,0.00021999,2]
[422888204,1779576642000,-155.0,0.00022,2]
[422888211,1779576642000,-352.0,0.00022,2]
[422888202,1779576642000,-151.0,0.00021999,2]
[422888191,1779576642000,-151.0,0.00021999,2]
[422888162,1779576642000,-151.0,0.00021999,2]
[422888154,1779576642000,-151.0,0.00021999,2]
[422888169,1779576642000,-151.0,0.00021999,2]
[422888115,1779576642000,-151.0,0.00021999,2]
[422888120,1779576642000,-151.0,0.00021999,2]
[422888117,1779576642000,-200.0,0.00021999,2]
[422888128,1779576642000,-206.33422798,0.00021999,2]
[422888132,1779576642000,-1798.80895522,0.00021999,2]
[422888122,1779576642000,-191.87295522,0.00021999,2]
[422888130,1779576642000,-151.0,0.00021999,2]
[422888124,1779576642000,-151.0,0.00021999,2]
[422888126,1779576642000,-198.97225456,0.00021999,2]
[422888135,1779576642000,-213.74032474,0.00021999,2]
[422888136,1779576642000,-151.0,0.00021999,2]
[422888140,1779576642000,-151.0,0.00021999,2]
[422888138,1779576642000,-151.0,0.00021999,2]
[422888144,1779576642000,-151.0,0.00021999,2]
[422888142,1779576642000,-500.0,0.00021999,2]
[422888146,1779576642000,-151.0,0.00021999,2]
[422888153,1779576642000,-500.0,0.00021999,2]
[422888149,1779576642000,-500.0,0.00021999,2]
[422888155,1779576642000,-151.0,0.00021999,2]
[422888151,1779576642000,-151.0,0.00021999,2]
[422888152,1779576642000,-151.0,0.00021999,2]
[422888156,1779576642000,-500.0,0.00021999,2]
[422888157,1779576642000,-151.0,0.00021999,2]
[422888158,1779576642000,-151.0,0.00021999,2]
[422888164,1779576642000,-151.0,0.00021999,2]
[422888167,1779576642000,-500.0,0.00021999,2]
[422888208,1779576642000,-397.0,0.00022,2]
[422888159,1779576642000,-500.0,0.00021999,2]
[422888200,1779576642000,-151.0,0.00021999,2]
[422888258,1779576642000,-150.0,0.00023456,2]
[422888212,1779576642000,-500.0,0.00022109,2]
[422888254,1779576642000,-500.0,0.00023455,2]
[422888259,1779576642000,-150.0,0.00023456,2]
[422888260,1779576642000,-150.0,0.00023456,2]
[422888262,1779576642000,-2005.9555727,0.00023643,2]
[422888261,1779576642000,-150.0,0.00023456,2]
[422888263,1779576642000,-287.24293187,0.00023664,7]
[422888266,1779576642000,-167.7,0.00023747,2]
[422888268,1779576642000,-165.96,0.00023932,2]
[422888273,1779576642000,-397.0,0.00024,2]
[422888269,1779576642000,-155.0,0.00024,2]
[422888264,1779576642000,-463.0,0.00023692,7]
[422888272,1779576642000,-224.0,0.00024,2]
[422888257,1779576642000,-1271.0,0.00023456,2]
[422888265,1779576642000,-2000.0,0.00023744,2]
[422888274,1779576642000,-344.0,0.00024,2]
[422888271,1779576642000,-1449.0,0.00024,2]
[422888276,1779576642000,-500.0,0.00024159,2]
[422888275,1779576642000,-352.0,0.00024,2]
[422888278,1779576642000,-2080.17592889,0.00024191,2]
[422888277,1779576642000,-699.31,0.00024184,2]
[422888279,1779576642000,-1337.2,0.00024324,2]
[422888281,1779576642000,-171.56,0.00024658,8]
[422888282,1779576642000,-357.9,0.00024658,2]
[422888280,1779576642000,-500.0,0.0002451,2]
[422888283,1779576642000,-1000.0,0.00024658,2]
[422888210,1779576642000,-344.0,0.00022,2]
[422888270,1779576642000,-447.0,0.00024,2]
[422888256,1779576642000,-1224.0,0.00023456,2]
[422888267,1779576642000,-5021.52450456,0.00023821,2]
[422888246,1779576642000,-500.0,0.00023395,2]
[422888203,1779576642000,-151.0,0.00021999,2]
[422888252,1779576642000,-1183253.6366,0.00023396,2]
[422888217,1779576642000,-886.18710515,0.00022655,2]
[422888215,1779576642000,-1865.36488656,0.00022547,2]
[422888216,1779576642000,-5021.52450456,0.00022641,2]
[422888214,1779576642000,-200.0,0.00022547,2]
[422888218,1779576642000,-500.0,0.00022772,2]
[422888221,1779576642000,-1449.0,0.00023,2]
[422888224,1779576642000,-397.0,0.00023,2]
[422888219,1779576642000,-155.0,0.00023,2]
[422888227,1779576642000,-344.0,0.00023,2]
[422888220,1779576642000,-447.0,0.00023,2]
[422888222,1779576642000,-224.0,0.00023,2]
[422888229,1779576642000,-847.0,0.00023,2]
[422888213,1779576642000,-1337.2,0.00022353,2]
[422888231,1779576642000,-200.0,0.00023095,2]
[422888239,1779576642000,-454.28852294,0.00023395,2]
[422888250,1779576642000,-640.52338063,0.00023395,2]
[422888245,1779576642000,-158.88387974,0.00023395,2]
[422888233,1779576642000,-222.55260524,0.00023386,2]
[422888237,1779576642000,-666.0,0.00023395,2]
[422888236,1779576642000,-300.0,0.00023395,2]
[422888248,1779576642000,-500.0,0.00023395,2]
[422888242,1779576642000,-500.0,0.00023395,2]
[422888235,1779576642000,-666.0,0.00023395,2]
[422888234,1779576642000,-300.0,0.00023395,2]
[422888230,1779576642000,-352.0,0.00023,2]
[422888232,1779576642000,-1934.38338736,0.00023095,2]
[422888332,1779576643000,-5021.52450456,0.0002736,2]
[422888328,1779576643000,-5000.0,0.00027123,2]
[422888322,1779576643000,-152.35107503,0.00027099,4]
[422888313,1779576643000,-1271.0,0.00026456,2]
[422888319,1779576643000,-215.31523495,0.0002672,7]
[422888315,1779576643000,-150.0,0.00026456,2]
[422888318,1779576643000,-27179.82,0.0002672,7]
[422888316,1779576643000,-150.0,0.00026456,2]
[422888317,1779576643000,-300.0,0.00026719,10]
[422888329,1779576643000,-448.42051769,0.00027191,2]
[422888321,1779576643000,-150.0,0.00027099,4]
[422888330,1779576643000,-167.7,0.00027265,2]
[422888334,1779576643000,-1500.0,0.00027397,2]
[422888333,1779576643000,-5800.0,0.00027397,2]
[422888323,1779576643000,-153.47162739,0.00027099,4]
[422888324,1779576643000,-150.0,0.00027099,4]
[422888325,1779576643000,-150.0,0.00027099,4]
[422888327,1779576643000,-150.0,0.00027099,4]
[422888335,1779576643000,-357.9,0.00027397,2]
[422888337,1779576643000,-11987.08,0.00027397,10]
[422888338,1779576643000,-9989.23,0.00027397,10]
[422888339,1779576643000,-962.47,0.000274,2]
[422888341,1779576643000,-500.0,0.000274,2]
[422888336,1779576643000,-6444.85,0.00027397,10]
[422888311,1779576643000,-500.0,0.00026399,2]
[422888326,1779576643000,-150.0,0.00027099,4]
[422888320,1779576643000,-284.58525916,0.00027099,7]
[422888284,1779576643000,-169.87,0.00024658,2]
[422888314,1779576643000,-150.0,0.00026456,2]
[422888346,1779576643000,-200.0,0.00027517,2]
[422888285,1779576643000,-171.29,0.00024658,2]
[422888286,1779576643000,-1645.03740608,0.00024739,2]
[422888293,1779576643000,-354.0,0.00025,2]
[422888294,1779576643000,-371.0,0.00025,2]
[422888287,1779576643000,-500.0,0.00024883,2]
[422888292,1779576643000,-408.0,0.00025,2]
[422888291,1779576643000,-228.70563724,0.00025,2]
[422888288,1779576643000,-173.41451163,0.00025,2]
[422888295,1779576643000,-5021.52450456,0.00025001,2]
[422888296,1779576643000,-886.18710515,0.00025029,2]
[422888290,1779576643000,-1468.68441305,0.00025,2]
[422888297,1779576643000,-169.87,0.00025381,7]
[422888289,1779576643000,-461.23846563,0.00025,2]
[422888298,1779576643000,-171.29,0.00025381,7]
[422888310,1779576643000,-1337.2,0.00026296,2]
[422888300,1779576643000,-670.58560358,0.00025422,2]
[422888299,1779576643000,-300.0,0.00025422,10]
[422888302,1779576643000,-30705.1,0.00025423,7]
[422888301,1779576643000,-300.0,0.00025422,10]
[422888306,1779576643000,-500.0,0.0002563,2]
[422888303,1779576643000,-5365.61,0.00025423,7]
[422888308,1779576643000,-2000.0,0.00025903,2]
[422888307,1779576643000,-158.46,0.00025743,30]
[422888304,1779576643000,-215.31523495,0.00025423,7]
[422888309,1779576643000,-5021.52450456,0.0002618,2]
[422888305,1779576643000,-1000.0,0.000256,2]
[422888312,1779576643000,-1224.0,0.00026456,2]
[422888340,1779576643000,-500.0,0.000274,2]
[422888344,1779576643000,-886.18710515,0.00027403,2]
[422888345,1779576643000,-500.0,0.00027447,7]
[422888383,1779576643000,-151.0,0.00027757,2]
[422888378,1779576643000,-578.20924308,0.00027757,2]
[422888380,1779576643000,-484.94425873,0.00027757,2]
[422888382,1779576643000,-500.0,0.00027757,2]
[422888381,1779576643000,-623.58710447,0.00027757,2]
[422888385,1779576643000,-181.08010149,0.00027757,2]
[422888395,1779576643000,-152.0,0.00027757,2]
[422888392,1779576643000,-152.0,0.00027757,2]
[422888388,1779576643000,-181.08010149,0.00027757,2]
[422888393,1779576643000,-152.0,0.00027757,2]
[422888390,1779576643000,-152.0,0.00027757,2]
[422888386,1779576643000,-176.44993098,0.00027757,2]
[422888379,1779576643000,-181.08010149,0.00027757,2]
[422888384,1779576643000,-152.0,0.00027757,2]
[422888389,1779576643000,-328.35616187,0.00027757,2]
[422888394,1779576643000,-152.0,0.00027757,2]
[422888396,1779576643000,-152.0,0.00027757,2]
[422888397,1779576643000,-152.0,0.00027757,2]
[422888398,1779576643000,-152.0,0.00027757,2]
[422888400,1779576643000,-152.0,0.00027757,2]
[422888399,1779576643000,-152.0,0.00027757,2]
[422888402,1779576643000,-152.0,0.00027757,2]
[422888403,1779576643000,-1598.69,0.00027801,7]
[422888401,1779576643000,-152.0,0.00027757,2]
[422888404,1779576643000,-500.0,0.00027812,2]
[422888347,1779576643000,-150.0,0.00027521,2]
[422888391,1779576643000,-152.0,0.00027757,2]
[422888376,1779576643000,-1000.0,0.00027757,2]
[422888387,1779576643000,-152.0,0.00027757,2]
[422888375,1779576643000,-279.9045709,0.00027757,2]
[422888343,1779576643000,-537.53,0.000274,2]
[422888377,1779576643000,-1000.0,0.00027757,2]
[422888342,1779576643000,-500.0,0.000274,2]
[422888349,1779576643000,-158.54,0.0002755,2]
[422888359,1779576643000,-412.95,0.00027711,7]
[422888354,1779576643000,-158.54,0.00027695,7]
[422888355,1779576643000,-159.87,0.00027695,7]
[422888356,1779576643000,-816.42,0.00027711,7]
[422888361,1779576643000,-151.0,0.00027757,2]
[422888360,1779576643000,-1000.0,0.00027753,14]
[422888352,1779576643000,-159.87,0.0002755,2]
[422888348,1779576643000,-816.42,0.0002755,30]
[422888351,1779576643000,-693.31,0.0002755,30]
[422888358,1779576643000,-693.31,0.00027711,7]
[422888350,1779576643000,-496.94,0.0002755,30]
[422888353,1779576643000,-412.95,0.0002755,30]
[422888370,1779576643000,-1235.18214925,0.00027757,2]
[422888371,1779576643000,-200.0,0.00027757,2]
[422888373,1779576643000,-8260.13072238,0.00027757,2]
[422888372,1779576643000,-359.76179104,0.00027757,2]
[422888368,1779576643000,-599.60298507,0.00027757,2]
[422888367,1779576643000,-174.61919141,0.00027757,2]
[422888369,1779576643000,-181.08010149,0.00027757,2]
[422888362,1779576643000,-500.0,0.00027757,2]
[422888364,1779576643000,-743.50770149,0.00027757,2]
[422888363,1779576643000,-3597.61791044,0.00027757,2]
[422888357,1779576643000,-496.94,0.00027711,7]
[422888365,1779576643000,-206.46373247,0.00027757,2]
[422888453,1779576644000,-771.01748644,0.00028305,2]
[422888460,1779576644000,-187.78006524,0.00028305,2]
[422888459,1779576644000,-290.26104002,0.00028305,2]
[422888449,1779576644000,-151.0,0.00028197,2]
[422888446,1779576644000,-693.31,0.00028194,7]
[422888445,1779576644000,-496.94,0.00028194,7]
[422888443,1779576644000,-151.0,0.00028142,2]
[422888437,1779576644000,-151.0,0.00028087,2]
[422888438,1779576644000,-847.0,0.000281,7]
[422888435,1779576644000,-8390.36,0.00028082,7]
[422888444,1779576644000,-816.42,0.00028194,7]
[422888436,1779576644000,-10272.10520532,0.00028087,2]
[422888447,1779576644000,-412.95,0.00028194,7]
[422888457,1779576644000,-1280.88388877,0.00028305,2]
[422888474,1779576644000,-151.0,0.00028527,2]
[422888455,1779576644000,-391.728846,0.00028305,2]
[422888450,1779576644000,-11455.01673214,0.00028252,2]
[422888451,1779576644000,-151.0,0.00028252,2]
[422888456,1779576644000,-187.78006524,0.00028305,2]
[422888452,1779576644000,-1337.2,0.00028267,2]
[422888454,1779576644000,-181.08010149,0.00028305,2]
[422888448,1779576644000,-11046.30350254,0.00028197,2]
[422888458,1779576644000,-200.0,0.00028305,2]
[422888462,1779576644000,-11878.85235123,0.00028307,2]
[422888464,1779576644000,-12318.36988822,0.00028362,2]
[422888463,1779576644000,-151.0,0.00028307,2]
[422888473,1779576644000,-167.319,0.00028486,19]
[422888441,1779576644000,-159.89,0.0002813,7]
[422888461,1779576644000,-187.78006524,0.00028305,2]
[422888442,1779576644000,-10652.17309792,0.00028142,2]
[422888406,1779576644000,-8565.75555911,0.00027812,2]
[422888434,1779576644000,-412.95,0.00028033,30]
[422888465,1779576644000,-151.0,0.00028362,2]
[422888405,1779576644000,-373.07297731,0.00027812,2]
[422888407,1779576644000,-151.0,0.00027812,2]
[422888408,1779576644000,-158.54,0.0002784,30]
[422888420,1779576644000,-9211.34798984,0.00027922,2]
[422888412,1779576644000,-289.53851418,0.00027867,2]
[422888411,1779576644000,-500.0,0.00027867,2]
[422888409,1779576644000,-159.87,0.0002784,30]
[422888414,1779576644000,-151.0,0.00027867,2]
[422888413,1779576644000,-8882.6885148,0.00027867,2]
[422888418,1779576644000,-412.95,0.00027872,2]
[422888419,1779576644000,-500.0,0.00027922,2]
[422888416,1779576644000,-496.94,0.00027872,2]
[422888415,1779576644000,-816.42,0.00027872,2]
[422888417,1779576644000,-693.31,0.00027872,2]
[422888421,1779576644000,-151.0,0.00027922,2]
[422888423,1779576644000,-9552.16786547,0.00027977,2]
[422888424,1779576644000,-151.0,0.00027977,2]
[422888433,1779576644000,-693.31,0.00028033,30]
[422888430,1779576644000,-151.0,0.00028032,2]
[422888425,1779576644000,-158.54,0.00027985,2]
[422888431,1779576644000,-816.42,0.00028033,30]
[422888422,1779576644000,-500.0,0.00027977,2]
[422888432,1779576644000,-496.94,0.00028033,30]
[422888426,1779576644000,-159.87,0.00027985,2]
[422888429,1779576644000,-9905.59807649,0.00028032,2]
[422888427,1779576644000,-500.0,0.00028,2]
[422888428,1779576644000,-500.0,0.00028032,2]
[422888439,1779576644000,-150.0,0.00028102,7]
[422888440,1779576644000,-158.57,0.0002813,7]
[422888466,1779576644000,-7426.65597291,0.00028417,2]
[422888410,1779576644000,-1000.0,0.00027855,4]
[422888471,1779576644000,-700.0,0.00028486,60]
[422888514,1779576644000,-5000.0,0.00028925,2]
[422888512,1779576644000,-5000.0,0.00028925,2]
[422888509,1779576644000,-194.72792766,0.00028853,2]
[422888506,1779576644000,-1328.27659266,0.00028853,2]
[422888504,1779576644000,-187.78006524,0.00028853,2]
[422888507,1779576644000,-200.0,0.00028853,2]
[422888505,1779576644000,-194.72792766,0.00028853,2]
[422888508,1779576644000,-301.0006985,0.00028853,2]
[422888510,1779576644000,-194.72792766,0.00028853,2]
[422888511,1779576644000,-150.0,0.00028897,2]
[422888516,1779576644000,-5000.0,0.00028925,2]
[422888515,1779576644000,-5000.0,0.00028925,2]
[422888517,1779576644000,-847.0,0.00029,7]
[422888518,1779576644000,-308.0,0.000291,2]
[422888520,1779576644000,-150.0,0.00029106,7]
[422888519,1779576644000,-1000.0,0.00029104,120]
[422888526,1779576644000,-1164.61657736,0.00029226,2]
[422888524,1779576644000,-3730.72977313,0.00029126,2]
[422888522,1779576644000,-308.0,0.00029119,5]
[422888521,1779576644000,-318.0,0.00029119,5]
[422888523,1779576644000,-156.587,0.00029126,2]
[422888527,1779576644000,-5000.0,0.00029226,2]
[422888525,1779576644000,-187.78006524,0.00029126,2]
[422888533,1779576644000,-1000.0,0.000293,2]
[422888531,1779576644000,-7877.93074664,0.000293,10]
[422888532,1779576644000,-1500.0,0.000293,7]
[422888529,1779576644000,-5000.0,0.00029226,2]
[422888530,1779576644000,-5000.0,0.00029226,2]
[422888467,1779576644000,-151.0,0.00028417,2]
[422888503,1779576644000,-799.54513344,0.00028853,2]
[422888513,1779576644000,-5000.0,0.00028925,2]
[422888528,1779576644000,-5000.0,0.00029226,2]
[422888496,1779576644000,-208.09075081,0.00028643,7]
[422888498,1779576644000,-187.2358575,0.00028643,7]
[422888472,1779576644000,-705.666,0.00028486,19]
[422888468,1779576644000,-151.0,0.00028472,2]
[422888469,1779576644000,-500.0,0.00028486,60]
[422888477,1779576644000,-2000.0,0.00028624,2]
[422888475,1779576644000,-5021.52450456,0.0002854,2]
[422888480,1779576644000,-5000.0,0.00028624,2]
[422888483,1779576644000,-171.705666,0.00028625,7]
[422888482,1779576644000,-249.80013577,0.00028625,7]
[422888478,1779576644000,-10000.0,0.00028624,2]
[422888481,1779576644000,-203.21834788,0.00028625,7]
[422888476,1779576644000,-244.13,0.00028601,120]
[422888479,1779576644000,-5000.0,0.00028624,2]
[422888484,1779576644000,-167.68178699,0.00028625,2]
[422888485,1779576644000,-308.83358069,0.00028625,7]
[422888470,1779576644000,-480.70188401,0.00028486,60]
[422888487,1779576644000,-310.45191836,0.00028625,7]
[422888486,1779576644000,-160.13791482,0.00028625,7]
[422888501,1779576644000,-181.71199712,0.00028643,7]
[422888502,1779576644000,-192.5602882,0.00028643,7]
[422888494,1779576644000,-219.5291614,0.00028629,7]
[422888495,1779576644000,-307.34048198,0.00028629,7]
[422888499,1779576644000,-176.06360561,0.00028643,7]
[422888497,1779576644000,-150.41592415,0.00028643,7]
[422888493,1779576644000,-152.53838167,0.00028629,7]
[422888490,1779576644000,-160.31472606,0.00028625,7]
[422888500,1779576644000,-158.89245147,0.00028643,7]
[422888491,1779576644000,-150.46740187,0.00028625,7]
[422888489,1779576644000,-156.85631833,0.00028625,7]
[422888492,1779576644000,-158.63218815,0.00028625,7]
[422888488,1779576644000,-232.58299202,0.00028625,7]
[422888565,1779576645000,-2000.0,0.00029503,2]
[422888568,1779576645000,-2000.0,0.00029503,2]
[422888579,1779576645000,-5000.0,0.00029527,2]
[422888578,1779576645000,-5000.0,0.00029527,2]
[422888569,1779576645000,-2000.0,0.00029503,2]
[422888564,1779576645000,-2000.0,0.00029503,2]
[422888563,1779576645000,-2000.0,0.00029503,2]
[422888562,1779576645000,-2000.0,0.00029503,2]
[422888560,1779576645000,-2000.0,0.00029503,2]
[422888561,1779576645000,-2000.0,0.00029503,2]
[422888571,1779576645000,-2000.0,0.00029503,2]
[422888582,1779576645000,-211.35540182,0.000297,2]
[422888572,1779576645000,-2000.0,0.00029503,2]
[422888580,1779576645000,-1000.0,0.00029528,8]
[422888577,1779576645000,-5000.0,0.00029527,2]
[422888573,1779576645000,-2000.0,0.00029503,2]
[422888574,1779576645000,-2000.0,0.00029503,2]
[422888576,1779576645000,-1000.0,0.00029519,6]
[422888584,1779576645000,-213.38831433,0.000297,2]
[422888594,1779576645000,-2000.0,0.00029785,2]
[422888595,1779576645000,-2287.6095528,0.00029829,2]
[422888559,1779576645000,-2000.0,0.00029503,2]
[422888585,1779576645000,-213.38831433,0.000297,2]
[422888581,1779576645000,-211.35540182,0.000297,2]
[422888566,1779576645000,-2000.0,0.00029503,2]
[422888553,1779576645000,-151.0,0.00029503,7]
[422888558,1779576645000,-2000.0,0.00029503,2]
[422888591,1779576645000,-2000.0,0.00029785,2]
[422888537,1779576645000,-829.12830338,0.00029401,2]
[422888534,1779576645000,-315.0,0.000293,2]
[422888539,1779576645000,-1377.42282658,0.00029401,2]
[422888536,1779576645000,-700.0,0.00029308,60]
[422888538,1779576645000,-194.72792766,0.00029401,2]
[422888535,1779576645000,-1000.0,0.00029307,60]
[422888551,1779576645000,-151.0,0.00029503,7]
[422888552,1779576645000,-151.0,0.00029503,7]
[422888541,1779576645000,-201.93286098,0.00029401,2]
[422888540,1779576645000,-200.0,0.00029401,2]
[422888542,1779576645000,-312.13772435,0.00029401,2]
[422888545,1779576645000,-1224.0,0.00029456,2]
[422888546,1779576645000,-165.96,0.0002948,120]
[422888549,1779576645000,-151.0,0.00029499,7]
[422888544,1779576645000,-201.93286098,0.00029401,2]
[422888543,1779576645000,-301.94269334,0.00029401,2]
[422888550,1779576645000,-151.0,0.00029503,7]
[422888548,1779576645000,-151.0,0.00029499,7]
[422888547,1779576645000,-1000.0,0.00029499,40]
[422888555,1779576645000,-2000.0,0.00029503,2]
[422888554,1779576645000,-2000.0,0.00029503,2]
[422888556,1779576645000,-2000.0,0.00029503,2]
[422888557,1779576645000,-2000.0,0.00029503,2]
[422888587,1779576645000,-886.18710515,0.00029778,2]
[422888600,1779576645000,-585.119069,0.00029837,7]
[422888586,1779576645000,-5021.52450456,0.0002972,2]
[422888631,1779576645000,-509.93771148,0.00029935,2]
[422888626,1779576645000,-500.0,0.00029888,2]
[422888632,1779576645000,-1000.0,0.00029938,5]
[422888629,1779576645000,-1000.0,0.00029934,13]
[422888628,1779576645000,-500.0,0.00029934,7]
[422888633,1779576645000,-859.8060506,0.00029949,2]
[422888634,1779576645000,-201.93286098,0.00029949,2]
[422888637,1779576645000,-209.40437684,0.00029949,2]